fUSD/lending_fUSD_20240503
["ID","MTS","AMOUNT","RATE_DAILY","PERIOD"]
[325322772,1714722646014,-230.089133,0.000309,7]
[325322774,1714722646024,-292.160935,0.000309,7]
[325322776,1714722646034,-151.0,0.000309,7]
[325322778,1714722646044,-1061.510086,0.000309,7]
[325322780,1714722646054,-602.609044,0.000309,7]
[325322782,1714722646064,-602.609044,0.000309,7]
[325322784,1714722646073,-1061.510086,0.000309,7]
[325322786,1714722646083,-214.115582,0.000309,7]
[325322788,1714722646093,-230.66067956,0.000309,2]
[325322790,1714722646103,-214.115582,0.000309,7]
[325322792,1714722646113,-775.869055,0.000309,7]
[325322794,1714722646124,-775.869055,0.000309,7]
[325322796,1714722646134,-188.91776928,0.000309,2]
[325322798,1714722646144,-6188.71536019,0.000309,2]
[325322800,1714722646154,-4058.44089501,0.0003095,3]
[325322801,1714722646166,-24047.29271146,0.0003095,3]
[325322802,1714722646176,-696.488061,0.0003095,7]
[325322803,1714722646186,-696.488061,0.0003095,7]
[325322804,1714722646196,-151.0,0.0003095,7]
[325322805,1714722646207,-151.0,0.0003095,7]
[325322806,1714722646216,-151.0,0.0003095,7]
[325322807,1714722646227,-267.403535,0.0003095,7]
[325322808,1714722646237,-267.403535,0.0003095,7]
[325322809,1714722646252,-8541.306709,0.0003095,7]
[325322810,1714722646263,-8541.306709,0.0003095,7]
[325322811,1714722646273,-276.394874,0.0003095,7]
[325322812,1714722646284,-215.386913,0.0003095,7]
[325322813,1714722646298,-276.394874,0.0003095,7]
[325322814,1714722646309,-215.386913,0.0003095,7]
[325322815,1714722646320,-753.220237,0.0003095,7]
[325322816,1714722646330,-753.220237,0.0003095,7]
[325322817,1714722646340,-162.608132,0.0003095,7]
[325322818,1714722646350,-221.974808,0.0003095,7]
[325322819,1714722646360,-162.608132,0.0003095,7]
[325322820,1714722646371,-221.974808,0.0003095,7]
[325322821,1714722646380,-151.0,0.0003095,7]
[325322822,1714722646390,-187.251389,0.0003095,7]
[325322823,1714722646400,-789.489464,0.0003095,7]
[325322824,1714722646412,-789.489464,0.0003095,7]
[325322825,1714722646421,-212.0,0.00030999,2]
[325322826,1714722646432,-212.0,0.00030999,2]
[325322827,1714722646441,-212.0,0.00030999,2]
[325322828,1714722646452,-212.0,0.00030999,2]
[325322829,1714722646462,-212.0,0.00030999,2]
[325322830,1714722646472,-212.0,0.00030999,2]
[325322831,1714722646482,-212.0,0.00030999,2]
[325322832,1714722646492,-212.0,0.00030999,2]
[325322833,1714722646502,-212.0,0.00030999,2]
[325322834,1714722646512,-221.0,0.00030999,2]
[325322835,1714722646522,-201.0,0.00030999,2]
[325322836,1714722646532,-201.0,0.00030999,2]
[325322837,1714722646542,-201.0,0.00030999,2]
[325322838,1714722646552,-201.0,0.00030999,2]
[325322839,1714722646562,-201.0,0.00030999,2]
[325322840,1714722646572,-201.0,0.00030999,2]
[325322841,1714722646582,-201.0,0.00030999,2]
[325322842,1714722646592,-201.0,0.00030999,2]
[325322843,1714722646602,-201.0,0.00030999,2]
[325322844,1714722646612,-207.0,0.00030999,2]
[325322845,1714722646621,-207.0,0.00030999,2]
[325322846,1714722646631,-207.0,0.00030999,2]
[325322847,1714722646641,-207.0,0.00030999,2]
[325322848,1714722646650,-207.0,0.00030999,2]
[325322849,1714722646661,-207.0,0.00030999,2]
[325322850,1714722646671,-207.0,0.00030999,2]
[325322851,1714722646680,-207.0,0.00030999,2]
[325322852,1714722646691,-207.0,0.00030999,2]
[325322853,1714722646701,-163.478102,0.00030999,7]
[325322854,1714722646710,-163.478102,0.00030999,7]
[325322855,1714722646720,-156.03786,0.00030999,7]
[325322856,1714722646730,-153.456011,0.00030999,7]
[325322857,1714722646740,-156.03786,0.00030999,7]
[325322858,1714722646750,-153.456011,0.00030999,7]
[325322859,1714722646761,-237.016386,0.00030999,7]
[325322860,1714722646771,-237.016386,0.00030999,7]
[325322861,1714722646781,-258.723355,0.00030999,7]
[325322862,1714722646791,-183.458591,0.00030999,7]
[325322863,1714722646801,-258.723355,0.00030999,7]
[325322864,1714722646811,-151.0,0.00030999,7]
[325322865,1714722646821,-151.0,0.00030999,7]
[325322866,1714722646830,-183.458591,0.00030999,7]
[325322867,1714722646840,-151.0,0.00030999,7]
[325322868,1714722646850,-151.0,0.00030999,7]
[325322869,1714722646860,-151.0,0.00030999,7]
[325322870,1714722646870,-968.673926,0.00030999,7]
[325322871,1714722646880,-968.673926,0.00030999,7]
[325322872,1714722646889,-230.089133,0.00030999,7]
[325322873,1714722646899,-1011.14,0.00030999,2]
[325322874,1714722646910,-1011.14,0.00030999,2]
[325322875,1714722646920,-292.160935,0.00030999,7]
[325322876,1714722646929,-1011.14,0.00030999,2]
[325322877,1714722646939,-1011.14,0.00030999,2]
[325322878,1714722646949,-230.089133,0.00030999,7]
[325322879,1714722646959,-1011.2913328,0.00030999,2]
[325322880,1714722646968,-292.160935,0.00030999,7]
[325322881,1714722646978,-1061.510086,0.00030999,7]
[325322882,1714722646987,-602.609044,0.00030999,7]
[325322883,1714722646997,-602.609044,0.00030999,7]
[325322884,1714722647007,-1061.510086,0.00030999,7]
[325322885,1714722647016,-214.115582,0.00030999,7]
[325322886,1714722647026,-214.115582,0.00030999,7]
[325322887,1714722647036,-775.869055,0.00030999,7]
[325322888,1714722647046,-775.869055,0.00030999,7]
[325322889,1714722647056,-6282.14,0.00030999,2]
[325322890,1714722647066,-6282.14,0.00030999,2]
[325322891,1714722647077,-6282.14,0.00030999,2]
[325322892,1714722647087,-6282.14,0.00030999,2]
[325322893,1714722647097,-6282.14,0.00030999,2]
[325322894,1714722647106,-6282.14,0.00030999,2]
[325322895,1714722647117,-6282.14,0.00030999,2]
[325322896,1714722647129,-6282.14,0.00030999,2]
[325322897,1714722647139,-6282.14,0.00030999,2]
[325322898,1714722647149,-6282.33233272,0.00030999,2]
[325322899,1714722647160,-789.489464,0.00030999,7]
[325322900,1714722647172,-789.489464,0.00030999,7]
[325322901,1714722647182,-1367.66202281,0.00031,3]
[325322902,1714722647192,-153060.53753689,0.00031,5]
[325322903,1714722647202,-43213.15877337,0.00031,5]
[325322904,1714722647924,-1127.64616048,0.0002742,2]
[325322905,1714722647933,-4250.31384934,0.00031,5]
[325322906,1714722648287,-320.47871854,0.00031,5]
[325322907,1714722648300,-37692.78208076,0.00031,5]
[325322908,1714722648312,-981.03420759,0.00031,5]
[325322909,1714722648323,-715.90004619,0.00031,5]
[325322910,1714722649260,-423.49699408,0.00027976,2]
[325322911,1714722649270,-189.95318358,0.00027976,2]
[325322913,1714722649282,-1021.86101848,0.00027976,2]
[325322914,1714722649291,-450.0,0.00028788,5]
[325322915,1714722649301,-151.0,0.00028789,7]
[325322916,1714722649311,-151.0,0.00028789,7]
[325322917,1714722649321,-151.0,0.000289,7]
[325322918,1714722649330,-397.45898152,0.000306,2]
[325322919,1714722649342,-600.0,0.000306,2]
[325322920,1714722649355,-6694.91324,0.000306,2]
[325322921,1714722649389,-1376.14771029,0.000306,2]
[325322922,1714722649401,-582.60288,0.000306,2]
[325322923,1714722649544,-348.87718819,0.000306,2]
[325322924,1714722649554,-2437.83256211,0.000309,2]
[325322925,1714722649564,-11600.0665633,0.00031,5]
[325322926,1714722649575,-586.767065,0.00031,5]
[325322927,1714722649586,-863.96425678,0.00031,5]
[325322928,1714722649632,-3203.7362396,0.00031,5]
[325322929,1714722649643,-1919.250333,0.00031,5]
[325322930,1714722650141,-6202.4,0.00031,5]
[325322931,1714722650158,-57999.99999991,0.00031,5]
[325322955,1714722803288,205.0,9.8e-05,2]
[325322957,1714722807705,150.0,0.000101,2]
[325322958,1714722807727,92.66122416,0.000101,2]
[325322993,1714723199582,-166.21191824,0.00010698,2]
[325323015,1714723399204,-467.5389,0.00010699,2]
[325323016,1714723399225,-177.54622384,0.00010798,2]
[325323017,1714723399248,-9354.91487616,0.00010798,2]
[325323018,1714723399907,1000.0,0.00025108,120]
[325323019,1714723406839,-792.56376086,0.00010798,2]
[325323020,1714723407017,-10000.0,0.00010798,2]
[325323021,1714723407536,-687.02413836,0.00010798,2]
[325323022,1714723417506,-1954.48603605,0.00010798,2]
[325323023,1714723417535,-8045.51396395,0.00012,2]
[325323024,1714723422039,-6979.10115795,0.00012,2]
[325323025,1714723422062,-1750.0609,0.000129,2]
[325323026,1714723422082,-179.36588224,0.000129,2]
[325323027,1714723422102,-166.21191824,0.000129,2]
[325323028,1714723422122,-235.86629643,0.000129,2]
[325323029,1714723422142,-313.97838466,0.000129,2]
[325323030,1714723422166,-185.18507974,0.000129,2]
[325323031,1714723422185,-166.83,0.0001299,2]
[325323032,1714723422205,-23.40038074,0.0001299,2]
[325323033,1714723424425,-143.42961926,0.0001299,2]
[325323034,1714723424446,-166.83,0.0001299,2]
[325323035,1714723424466,-166.83,0.0001299,2]
[325323036,1714723424491,-166.83,0.0001299,2]
[325323037,1714723424513,-188.69559804,0.0001299,2]
[325323038,1714723424537,-9167.3847827,0.00013,2]
[325323039,1714723425459,-10000.0,0.00013,2]
[325323040,1714723426583,-10000.0,0.00013,2]
[325323041,1714723426669,806.89802881,0.0002022,50]
[325323042,1714723428385,-10000.0,0.00013,2]
[325323043,1714723429365,-10000.0,0.00013,2]
[325323044,1714723431987,-10000.0,0.00013,2]
[325323045,1714723433521,-10000.0,0.00013,2]
[325323047,1714723435052,-10000.0,0.00013,2]
[325323048,1714723436786,-10000.0,0.00013,2]
[325323049,1714723439362,-10000.0,0.00013,2]
[325323050,1714723440920,-10000.0,0.00013,2]
[325323051,1714723442773,-10000.0,0.00013,2]
[325323053,1714723444645,-10000.0,0.00013,2]
[325323055,1714723446547,-10000.0,0.00013,2]
[325323056,1714723448036,-10000.0,0.00013,2]
[325323058,1714723450268,-10000.0,0.00013,2]
[325323059,1714723451770,-10000.0,0.00013,2]
[325323062,1714723461390,-4400.0,0.00013,2]
[325323066,1714723554120,23.91065991,0.0001,2]
[325323067,1714723554145,255.97189123,0.0001,2]
[325323068,1714723554171,586.48533909,0.0001,2]
[325323069,1714723554196,586.48533909,0.0001,2]
[325323070,1714723554222,586.48533909,0.0001,2]
[325323071,1714723554248,586.48533909,0.0001,2]
[325323072,1714723554273,342.97065917,0.0001,2]
[325323073,1714723554297,586.48533909,0.0001,2]
[325323074,1714723554322,586.48533909,0.0001,2]
[325323075,1714723554348,586.48533909,0.0001,2]
[325323076,1714723554372,513.15861968,0.0001,2]
[325323077,1714723554401,112.56205853,0.0001,2]
[325323116,1714723832048,-508.0,0.00011999,2]
[325323117,1714723832058,-1000.0,0.00012,2]
[325323118,1714723832068,-432.2412,0.000129,2]
[325323119,1714723832077,-1413.44578548,0.000129,2]
[325323120,1714723832089,-8495.45561075,0.000129,2]
[325323121,1714723832101,-310.78316841,0.000129,2]
[325323122,1714723832116,-5859.55761299,0.000129,2]
[325323123,1714723832127,-578.3778,0.000129,2]
[325323124,1714723832141,-1192.33623907,0.000129,2]
[325323125,1714723832166,-10052.93246183,0.000129,2]
[325323126,1714723832177,-465.39226141,0.000129,2]
[325323127,1714723832188,-1153.78,0.000129,2]
[325323128,1714723832200,-2597.42182965,0.000129,2]
[325323129,1714723832345,-22195.75083041,0.000129,2]
[325323130,1714723832357,-175.16243095,0.000129,2]
[325323131,1714723832367,-182.66917428,0.000129,2]
[325323132,1714723832377,-188.69303716,0.000129,2]
[325323133,1714723832388,-173.7418,0.000129,2]
[325323134,1714723832398,-256.3735,0.000129,2]
[325323135,1714723832407,-189.66064792,0.000129,2]
[325323136,1714723832417,-188.69559805,0.0001299,2]
[325323138,1714723832427,-166.83,0.0001299,2]
[325323140,1714723832437,-370703.28117995,0.00013,2]
[325323143,1714723832450,-624.67786497,0.00013,2]
[325323197,1714723838150,-819.04563211,0.00012835,2]
[325323202,1714723838211,-136.00199489,0.00012835,2]
[325323203,1714723838221,-5659.89800511,0.00013,2]
[325323204,1714723838391,-1045967.11105503,0.00013,2]
[325323205,1714723838400,-31112.37021041,0.00013,2]
[325323206,1714723838410,-687.02413836,0.00015,2]
[325323207,1714723838419,-185.18507971,0.000153,2]
[325323208,1714723838429,-7485.0,0.00015499,2]
[325323209,1714723838438,-177.77,0.00015673,2]
[325323211,1714723838448,-562.99,0.00016851,2]
[325323213,1714723838457,-2016.25,0.00016851,2]
[325323215,1714723838465,-21316.92,0.00016851,2]
[325323217,1714723838474,-150.99,0.00016851,2]
[325323218,1714723838484,-188.69303712,0.00016856,2]
[325323219,1714723838493,-499.99,0.00016856,2]
[325323221,1714723838505,-9189.71076016,0.00016997,7]
[325323222,1714723838514,-1211.81420206,0.00016997,2]
[325323223,1714723838524,-150.99,0.00016997,2]
[325323224,1714723838533,-117025.80403338,0.00016999,2]
[325323225,1714723838544,-464.24,0.0001726,2]
[325323226,1714723838554,-182.66917425,0.000174,2]
[325323227,1714723838563,-185.18507971,0.000177,2]
[325323228,1714723838572,-492.27,0.00018796,2]
[325323229,1714723838581,-1240.18,0.00019478,2]
[325323230,1714723838590,-177.76,0.00019551,2]
[325323231,1714723838599,-1726.41,0.00019556,2]
[325323232,1714723838608,-169.02,0.00019573,2]
[325323233,1714723838622,-500.0,0.00019664,2]
[325323234,1714723838632,-154.45,0.00019668,2]
[325323235,1714723838644,-1280.12,0.00019893,2]
[325323236,1714723838654,-151.87422436,0.000199,2]
[325323237,1714723838664,-151.87422436,0.000199,2]
[325323238,1714723838674,-151.87422436,0.000199,2]
[325323239,1714723838683,-151.87422436,0.000199,2]
[325323240,1714723838692,-177.54622384,0.00019999,2]
[325323241,1714723838701,-250.0,0.00020008,2]
[325323242,1714723838711,-185.18507971,0.000201,2]
[325323243,1714723838720,-151.87422436,0.0002025,2]
[325323244,1714723838729,-161.76,0.00020385,2]
[325323245,1714723838738,-400.0,0.00020428,2]
[325323246,1714723838747,-150.0,0.00020553,2]
[325323247,1714723838757,-154.45,0.00020692,2]
[325323248,1714723838766,-188.69303712,0.00020812,2]
[325323249,1714723838775,-2670.0,0.00021,3]
[325323250,1714723838784,-272.94,0.00021644,2]
[325323251,1714723838793,-174.19,0.00021737,2]
[325323252,1714723838802,-182.66917425,0.000219,2]
[325323253,1714723838811,-189.66064792,0.000219,2]
[325323254,1714723838820,-250.0,0.00021918,2]
[325323255,1714723838829,-1820.11,0.00021918,3]
[325323256,1714723838838,-151.87422436,0.00022088,2]
[325323257,1714723838847,-151.69339482,0.00022114,2]
[325323258,1714723838856,-23900.0,0.00022188,2]
[325323259,1714723838866,-383.77,0.00022332,2]
[325323260,1714723838876,-173.93618721,0.00022346,2]
[325323261,1714723838885,-153.72003342,0.00022407,2]
[325323262,1714723838896,-185.18507971,0.000225,2]
[325323263,1714723838905,-154.17335256,0.00022602,2]
[325323264,1714723838914,-177.76,0.0002281,2]
[325323265,1714723838923,-400.0,0.00022981,2]
[325323266,1714723838932,-763.02990467,0.00023224,2]
[325323267,1714723838941,-177.77,0.00023509,2]
[325323268,1714723838951,-154.17335256,0.00023573,2]
[325323269,1714723838960,-288.0,0.00023609,2]
[325323270,1714723838969,-5901.0,0.00023609,2]
[325323271,1714723838979,-5739.0,0.00023609,2]
[325323272,1714723838990,-2292.0,0.00023609,2]
[325323273,1714723838999,-24602.527,0.00023609,2]
[325323274,1714723839008,-153.42929399,0.00023677,2]
[325323275,1714723839018,-154.51082583,0.00023908,2]
[325323276,1714723839029,-151.69339482,0.00023923,2]
[325323277,1714723839039,-151.87422436,0.00023925,2]
[325323278,1714723839049,-2443.59246119,0.00024041,2]
[325323279,1714723839063,-600.0,0.00024276,2]
[325323280,1714723839074,-163.28,0.00024329,15]
[325323281,1714723839084,-154.17335256,0.00024635,2]
[325323282,1714723839094,-2114.49,0.00024657,2]
[325323283,1714723839103,-500.0,0.00024657,2]
[325323284,1714723839113,-500.0,0.00024657,2]
[325323285,1714723839123,-555.53712837,0.00024657,2]
[325323286,1714723839134,-888.0,0.00024657,2]
[325323287,1714723839145,-9626.82,0.00024657,2]
[325323288,1714723839154,-9626.82,0.00024657,2]
[325323289,1714723839163,-9626.82,0.00024657,2]
[325323290,1714723839173,-224.55259295,0.00024755,2]
[325323291,1714723839182,-188.69303712,0.00024768,2]
[325323292,1714723839191,-2302.491,0.00024807,2]
[325323293,1714723839200,-972.257,0.00024807,2]
[325323294,1714723839209,-463.573,0.00024807,2]
[325323295,1714723839218,-1397.818,0.00024807,2]
[325323296,1714723839227,-1227.0,0.00024807,2]
[325323297,1714723839236,-1260.514,0.00024807,2]
[325323298,1714723839245,-542.0,0.00024807,2]
[325323299,1714723839254,-1786.0,0.00024807,2]
[325323300,1714723839263,-309.033,0.00024807,2]
[325323301,1714723839273,-611.0,0.00024807,2]
[325323302,1714723839282,-808.0,0.00024807,2]
[325323303,1714723839291,-437.0,0.00024807,2]
[325323304,1714723839300,-150.807,0.00024807,2]
[325323305,1714723839309,-2455.57,0.00024807,2]
[325323306,1714723839318,-1482.097,0.00024807,2]
[325323307,1714723839327,-421.012,0.00024807,2]
[325323308,1714723839337,-151.013,0.00024807,2]
[325323309,1714723839347,-1143.459,0.00024807,2]
[325323310,1714723839356,-444.287,0.00024807,2]
[325323311,1714723839365,-216.0,0.00024807,2]
[325323312,1714723839374,-1647.783,0.00024807,2]
[325323313,1714723839383,-3142.267,0.00024807,2]
[325323314,1714723839393,-652.44489084,0.0002485,2]
[325323315,1714723839403,-185.18507971,0.000249,2]
[325323316,1714723839412,-12625.00725318,0.00025,2]
[325323317,1714723839422,-2000.0,0.00025,2]
[325323318,1714723839432,-2000.0,0.0002501,2]
[325323319,1714723839441,-2000.0,0.0002502,2]
[325323320,1714723839450,-2000.0,0.0002503,2]
[325323321,1714723839459,-2000.0,0.0002504,2]
[325323322,1714723839468,-2000.0,0.0002505,2]
[325323323,1714723839478,-3847.5343,0.0002506,2]
[325323324,1714723839487,-383.77,0.00025123,120]
[325323325,1714723839497,-2114.49,0.00025205,3]
[325323326,1714723839507,-153.72003342,0.00025358,2]
[325323327,1714723839517,-400.0,0.00025535,2]
[325323328,1714723839527,-2114.49,0.00025753,4]
[325323329,1714723839551,-151.87422436,0.00025763,2]
[325323330,1714723839564,-888.0,0.00026027,4]
[325323331,1714723839573,-177.76,0.00026068,120]
[325323332,1714723839583,-157.09201714,0.00026261,2]
[325323333,1714723839592,-2114.49,0.00026301,5]
[325323334,1714723839602,-159.88046271,0.00026371,2]
[325323335,1714723839611,-182.66917425,0.000264,2]
[325323336,1714723839621,-154.51082583,0.00026459,2]
[325323337,1714723839631,-154.51082583,0.00026465,2]
[325323338,1714723839643,-288.0,0.00026609,2]
[325323339,1714723839653,-372.459,0.00026609,2]
[325323340,1714723839663,-184.037,0.00026609,2]
[325323341,1714723839673,-1000.0,0.00026784,2]
[325323342,1714723839682,-500.0,0.00026784,2]
[325323343,1714723839692,-161.429294,0.00026799,2]
[325323344,1714723839702,-155.99402394,0.00026838,2]
[325323345,1714723839712,-2114.49,0.00026849,6]
[325323346,1714723839722,-166805.0986,0.00026899,2]
[325323347,1714723839731,-2000.0,0.00027,2]
[325323348,1714723839740,-177.0,0.00027,2]
[325323349,1714723839750,-2000.0,0.0002701,2]
[325323350,1714723839759,-2000.0,0.0002702,2]
[325323351,1714723839769,-2000.0,0.0002703,2]
[325323352,1714723839778,-2000.0,0.0002704,2]
[325323353,1714723839787,-3541.970031,0.0002705,2]
[325323354,1714723839798,-154.6633179,0.00027062,2]
[325323355,1714723839807,-158.84299067,0.00027224,3]
[325323356,1714723839816,-185.18507971,0.000273,2]
[325323358,1714723839826,-600.0,0.0002731,2]
[325323359,1714723839835,-2114.49,0.00027397,7]
[325323360,1714723839844,-200.0,0.00027397,2]
[325323361,1714723839853,-151.25,0.00027397,2]
[325323362,1714723839862,-536.37,0.00027397,10]
[325323363,1714723839872,-253.78538962,0.00027416,2]
[325323364,1714723839882,-151.87422436,0.000276,2]
[325323365,1714723839892,-1661.95649613,0.00027696,2]
[325323367,1714723839902,-182.05,0.00027766,120]
[325323368,1714723839912,-157.09201714,0.000278,2]
[325323369,1714723839921,-971.0,0.00027807,2]
[325323370,1714723839931,-2299.0,0.00027807,2]
[325323371,1714723839942,-462.0,0.00027807,2]
[325323372,1714723839951,-1396.0,0.00027807,2]
[325323373,1714723839960,-159.609,0.00027807,2]
[325323374,1714723839970,-542.0,0.00027807,2]
[325323375,1714723839980,-1786.0,0.00027807,2]
[325323376,1714723839990,-808.0,0.00027807,2]
[325323377,1714723839999,-609.0,0.00027807,2]
[325323378,1714723840008,-437.0,0.00027807,2]
[325323379,1714723840019,-1477.0,0.00027807,2]
[325323380,1714723840030,-2449.0,0.00027807,2]
[325323381,1714723840040,-421.0,0.00027807,2]
[325323383,1714723840049,-1139.0,0.00027807,2]
[325323384,1714723840060,-444.0,0.00027807,2]
[325323385,1714723840070,-215.0,0.00027807,2]
[325323386,1714723840081,-1643.0,0.00027807,2]
[325323387,1714723840090,-3134.0,0.00027807,2]
[325323388,1714723840100,-210.49567394,0.00027824,2]
[325323389,1714723840109,-200.0,0.000279,7]
[325323390,1714723840119,-383.77,0.00027915,120]
[325323391,1714723840130,-2114.49,0.00027945,8]
[325323392,1714723840139,-4626.68696717,0.00027951,2]
[325323393,1714723840148,-181.72407984,0.00027962,2]
[325323394,1714723840157,-479.47666845,0.00027976,2]
[325323395,1714723840167,-158.45177316,0.00027976,7]
[325323396,1714723840176,-200.44666246,0.00027976,2]
[325323397,1714723840185,-155.0,0.00027976,2]
[325323398,1714723840195,-483.30142374,0.00027976,2]
[325323399,1714723840204,-155.32080953,0.00027976,2]
[325323400,1714723840215,-155.0,0.00027976,2]
[325323401,1714723840225,-155.31745909,0.00027976,2]
[325323402,1714723840236,-156.20847685,0.00027976,2]
[325323403,1714723840246,-305.25449563,0.00027976,2]
[325323404,1714723840255,-155.32848151,0.00027976,2]
[325323405,1714723840266,-231.24039108,0.00027976,2]
[325323406,1714723840276,-298.32588627,0.00027976,2]
[325323407,1714723840287,-155.85308628,0.00027976,2]
[325323408,1714723840296,-156.3850435,0.00027976,2]
[325323409,1714723840305,-155.0,0.00027976,2]
[325323410,1714723840315,-221.9885273,0.00027976,2]
[325323411,1714723840324,-786.99155585,0.00027976,2]
[325323412,1714723840334,-4107.32355274,0.00027976,2]
[325323413,1714723840345,-379.4956724,0.00027976,2]
[325323414,1714723840354,-155.0,0.00027976,2]
[325323415,1714723840364,-155.0,0.00027976,2]
[325323416,1714723840373,-236.68015498,0.00027976,2]
[325323417,1714723840382,-155.10093137,0.00027976,2]
[325323418,1714723840392,-346.16050584,0.00027976,3]
[325323419,1714723840401,-162.73864695,0.00027976,2]
[325323420,1714723840410,-364.83359893,0.00027976,2]
[325323421,1714723840420,-352.53581724,0.00027976,2]
[325323422,1714723840430,-175.64203584,0.00027976,2]
[325323423,1714723840439,-1244.22522024,0.00027976,2]
[325323424,1714723840448,-155.69804417,0.00027976,2]
[325323425,1714723840458,-194.51511767,0.00027976,2]
[325323426,1714723840468,-362.94669149,0.00027976,10]
[325323427,1714723840477,-455.09871238,0.00027976,2]
[325323428,1714723840487,-194.05039763,0.00027976,2]
[325323429,1714723840496,-283.44852378,0.00027976,2]
[325323430,1714723840505,-188.73221684,0.00027976,2]
[325323431,1714723840515,-567.40051125,0.00027976,2]
[325323432,1714723840524,-190.24683471,0.00027976,2]
[325323433,1714723840533,-1311.05945872,0.00027976,2]
[325323434,1714723840543,-2792.94854254,0.00027977,2]
[325323435,1714723840553,-5000.0,0.00027977,2]
[325323436,1714723840563,-525.18951641,0.00027977,2]
[325323437,1714723840573,-279.14054832,0.00027977,2]
[325323438,1714723840582,-1015.74,0.00027978,2]
[325323439,1714723840592,-30937.32197816,0.0002798,7]
[325323440,1714723840601,-313.97838465,0.00027986,2]
[325323441,1714723840611,-400.0,0.00028088,2]
[325323443,1714723840625,-155.2105048,0.00028139,2]
[325323445,1714723840634,-672.0,0.00028233,5]
[325323446,1714723840645,-1000.0,0.00028272,10]
[325323447,1714723840655,-500.0,0.00028272,2]
[325323448,1714723840666,-2114.49,0.00028493,9]
[325323449,1714723840675,-168.96,0.00028712,2]
[325323450,1714723840685,-1291.51548196,0.0002872,2]
[325323451,1714723840696,-287.91757552,0.0002872,2]
[325323452,1714723840705,-11332.93637159,0.0002872,2]
[325323453,1714723840715,-288.32584948,0.0002872,2]
[325323454,1714723840724,-188.69303712,0.00028724,2]
[325323455,1714723840733,-1015.74,0.00028788,2]
[325323456,1714723840743,-1015.74,0.00028788,2]
[325323457,1714723840752,-1015.74,0.00028788,2]
[325323458,1714723840762,-1015.74,0.00028788,2]
[325323460,1714723840770,-1015.74,0.00028788,2]
[325323462,1714723840780,-1015.74,0.00028788,2]
[325323464,1714723840789,-1015.74,0.00028788,2]
[325323466,1714723840798,-1015.74,0.00028788,2]
[325323468,1714723840807,-1015.74,0.00028788,2]
[325323470,1714723840816,-1015.74,0.00028788,2]
[325323472,1714723840825,-150.0,0.00028794,10]
[325323474,1714723840835,-155.49931898,0.00028794,10]
[325323476,1714723840844,-150.0,0.00028794,10]
[325323478,1714723840853,-150.0,0.00028794,10]
[325323480,1714723840862,-151.0,0.00028795,7]
[325323482,1714723840871,-151.0,0.00028795,7]
[325323484,1714723840880,-151.0,0.00028795,7]
[325323486,1714723840890,-151.0,0.00028795,7]
[325323488,1714723840899,-151.0,0.00028795,7]
[325323490,1714723840908,-151.0,0.00028795,7]
[325323492,1714723840917,-151.0,0.00028795,7]
[325323518,1714723841145,-249.962206,0.00028795,7]
[325323521,1714723841166,-197.218501,0.00028795,7]
[325323523,1714723841176,-197.218501,0.00028795,7]
[325323525,1714723841185,-151.0,0.00028795,7]
[325323527,1714723841196,-151.0,0.00028795,7]
[325323529,1714723841205,-877.68,0.000288,2]
[325323531,1714723841214,-1000.0,0.000288,2]
[325323533,1714723841223,-1064.49,0.000288,2]